bitfinex-derivatives/quotes_BTCF0:USTF0_20250718
["timestamp","ask_amount","ask_price","bid_price","bid_amount"]
[1752805724648,1.64334927,120370.0,120360.0,0.13318]
[1752805724850,1.64334927,120370.0,120360.0,0.2992238]
[1752805725050,1.64334927,120370.0,120360.0,0.13295258]
[1752805725451,1.04498927,120370.0,120360.0,0.13295258]
[1752805725652,2.79234927,120370.0,120360.0,0.13295258]
[1752805725855,2.19402927,120370.0,120360.0,0.15620258]
[1752805726050,2.40811753,120370.0,120360.0,0.25036258]
[1752805726249,1.80979753,120370.0,120360.0,0.25036258]
[1752805726553,2.78644927,120370.0,120360.0,0.25036258]
[1752805726859,2.79018927,120370.0,120360.0,0.25036258]
[1752805728954,2.42938927,120370.0,120360.0,0.25036258]
[1752805729150,3.15098927,120370.0,120360.0,0.25036258]
[1752805729456,2.55270927,120370.0,120360.0,0.25036258]
[1752805729756,3.15090927,120370.0,120360.0,0.25036258]
[1752805730054,3.15090927,120370.0,120360.0,0.27274161]
[1752805730250,2.55270927,120370.0,120360.0,0.27274161]
[1752805730450,3.15090927,120370.0,120360.0,0.17858161]
[1752805732855,3.15086927,120370.0,120360.0,0.17858161]
[1752805733355,2.55270927,120370.0,120360.0,0.17858161]
[1752805733553,3.15082927,120370.0,120360.0,0.17858161]
[1752805733955,2.55270927,120370.0,120360.0,0.03207161]
[1752805734151,3.15078927,120370.0,120360.0,0.03207161]
[1752805734856,3.15078927,120370.0,120360.0,0.15523161]
[1752805735057,3.09556811,120370.0,120360.0,0.15523161]
[1752805735252,3.09756811,120370.0,120360.0,0.15523161]
[1752805736157,3.09856811,120370.0,120360.0,0.15523161]
[1752805736458,2.77541753,120370.0,120360.0,0.15523161]
[1752805736652,3.09856811,120370.0,120360.0,0.15523161]
[1752805738059,3.09856811,120370.0,120360.0,0.14553903]
[1752805739054,0.1737838,120360.0,120350.0,0.06552581]
[1752805739256,1.19971981,120360.0,120350.0,0.03571903]
[1752805739558,1.92263123,120360.0,120350.0,0.03571903]
[1752805740259,1.92259123,120360.0,120350.0,0.01334]
[1752805741260,0.1737976,120350.0,120340.0,0.16904903]
[1752805741460,0.85774818,120350.0,120340.0,0.16904903]
[1752805741657,0.98165559,120350.0,120340.0,0.16904903]
[1752805742255,0.98165559,120350.0,120340.0,0.21108903]
[1752805742556,1.57957559,120350.0,120340.0,0.26224903]
[1752805744957,0.65076501,120350.0,120340.0,0.43574818]
[1752805745159,1.24864501,120350.0,120340.0,0.75889876]
[1752805745760,1.24864501,120350.0,120340.0,0.43574818]
[1752805746158,1.24864501,120350.0,120340.0,0.93574818]
[1752805746461,1.24864501,120350.0,120340.0,0.93674818]
[1752805746961,0.97867559,120350.0,120340.0,0.77067678]
[1752805747163,1.57659559,120350.0,120340.0,0.77167678]
[1752805747363,1.57655559,120350.0,120340.0,0.77167678]
[1752805749061,1.57953559,120350.0,120340.0,0.77167678]
[1752805750157,0.98165559,120350.0,120340.0,0.77167678]
[1752805750364,1.57651559,120350.0,120340.0,0.77167678]
[1752805750869,1.57651559,120350.0,120340.0,0.93774818]
[1752805750870,0.65552501,120350.0,120340.0,0.93774818]
[1752805751060,1.25336501,120350.0,120340.0,0.93774818]
[1752805751260,1.25336501,120350.0,120340.0,0.93674818]
[1752805751463,0.65552501,120350.0,120340.0,0.93674818]
[1752805751763,1.25336501,120350.0,120340.0,0.93574818]
[1752805752464,1.25336501,120350.0,120340.0,0.9059414]
[1752805752758,1.25336501,120350.0,120340.0,0.9069414]
[1752805753164,1.25336501,120350.0,120340.0,0.93680495]
[1752805753363,1.25336501,120350.0,120340.0,0.74087]
[1752805753964,1.25336501,120350.0,120340.0,0.74187]
[1752805755566,1.57647559,120350.0,120340.0,0.77173541]
[1752805755760,1.57945559,120350.0,120340.0,0.77173541]
[1752805756466,1.25630501,120350.0,120340.0,0.77173541]
[1752805756660,0.98165559,120350.0,120340.0,0.65502541]
[1752805756965,1.57941559,120350.0,120340.0,0.52440037]
[1752805757364,1.57941559,120350.0,120340.0,0.502]
[1752805757566,1.57941559,120350.0,120340.0,0.02440037]
[1752805757766,1.57941559,120350.0,120340.0,0.002]
[1752805758168,1.57941559,120350.0,120340.0,0.001]
[1752805758467,1.58041559,120350.0,120340.0,0.001]
[1752805758859,1.58045559,120350.0,120340.0,0.12416]
[1752805759768,1.58045559,120350.0,120340.0,0.14767]
[1752805760269,0.65950501,120350.0,120340.0,0.26327037]
[1752805760469,1.25424501,120350.0,120340.0,0.24087]
[1752805760769,0.65652501,120350.0,120340.0,0.4069414]
[1752805760967,1.25428501,120350.0,120340.0,0.4069414]
[1752805761167,0.65652501,120350.0,120340.0,0.4069414]
[1752805761367,1.25428501,120350.0,120340.0,0.4069414]
[1752805761768,1.25328501,120350.0,120340.0,0.4069414]
[1752805761963,1.25528501,120350.0,120340.0,0.4059414]
[1752805762468,1.25524501,120350.0,120340.0,0.43580681]
[1752805763067,1.25324501,120350.0,120340.0,0.43780681]
[1752805763266,0.65552501,120350.0,120340.0,0.43780681]
[1752805763568,1.25324501,120350.0,120340.0,0.43780681]
[1752805765568,1.25324501,120350.0,120340.0,0.27173541]
[1752805767069,0.65552501,120350.0,120340.0,0.27173541]
[1752805767269,1.25320501,120350.0,120340.0,0.27173541]
[1752805767872,1.25320501,120350.0,120340.0,0.43780681]
[1752805768074,1.25320501,120350.0,120340.0,0.27173541]
[1752805769075,1.25320501,120350.0,120340.0,0.43780681]
[1752805770074,1.25320501,120350.0,120340.0,0.4079414]
[1752805771079,1.25320501,120350.0,120340.0,0.43034833]
[1752805771471,1.24844501,120350.0,120340.0,0.43034833]
[1752805772072,1.24844501,120350.0,120340.0,0.93034833]
[1752805772573,1.24828501,120350.0,120340.0,0.93034833]
[1752805775478,1.24843501,120350.0,120340.0,0.93034833]
[1752805775979,1.24839501,120350.0,120340.0,0.93034833]
[1752805779485,1.24839501,120350.0,120340.0,0.76427693]
[1752805779784,1.62716196,120350.0,120340.0,0.76427693]
[1752805779984,1.62716196,120350.0,120340.0,0.77173541]
[1752805779985,1.62712196,120350.0,120340.0,0.77173541]
[1752805780985,1.57165734,120350.0,120340.0,0.77173541]
[1752805781283,1.57165734,120350.0,120340.0,0.93780681]
[1752805782185,1.57150734,120350.0,120340.0,0.93780681]
[1752805782582,1.57150734,120350.0,120340.0,0.95117681]
[1752805783183,1.24831501,120350.0,120340.0,0.95117681]
[1752805783383,1.57150734,120350.0,120340.0,0.95117681]
[1752805783791,0.97418734,120350.0,120340.0,0.95117681]
[1752805783991,1.57146734,120350.0,120340.0,0.95117681]
[1752805785694,1.24827501,120350.0,120340.0,0.95117681]
[1752805785895,1.57146734,120350.0,120340.0,0.95117681]
[1752805786897,0.97418734,120350.0,120340.0,0.95117681]
[1752805787096,1.24815501,120350.0,120340.0,0.95117681]
[1752805787696,1.57134734,120350.0,120340.0,0.95117681]
[1752805790398,1.57134734,120350.0,120340.0,0.99591126]
[1752805790698,1.57134734,120350.0,120340.0,0.95117681]
[1752805790900,1.57134734,120350.0,120340.0,0.99591126]
[1752805791799,0.97418734,120350.0,120340.0,0.99591126]
[1752805792101,0.65099501,120350.0,120340.0,0.99591126]
[1752805792300,1.24799501,120350.0,120340.0,0.99591126]
[1752805793902,0.65076501,120350.0,120340.0,1.31910359]
[1752805794099,0.65076501,120350.0,120340.0,1.28923818]
[1752805794394,0.65076501,120350.0,120340.0,0.96604585]
[1752805794601,1.24768501,120350.0,120340.0,0.96604585]
[1752805797700,0.12390741,120350.0,120340.0,1.28923818]
[1752805797904,0.3608,120360.0,120350.0,0.24098]
[1752805797905,0.5268438,120360.0,120350.0,0.24098]
[1752805798104,1.44687613,120360.0,120350.0,0.17671843]
[1752805798406,1.57138559,120360.0,120350.0,0.19914334]
[1752805798604,1.9131074,120360.0,120350.0,0.10835843]
[1752805798899,1.4408083,120360.0,120350.0,0.02242614]
[1752805799101,2.0801222,120360.0,120350.0,0.02242614]
[1752805799406,0.1660576,120350.0,120340.0,0.0575341]
[1752805799605,0.85004993,120350.0,120340.0,0.02242637]
[1752805799803,0.1660714,120340.0,120330.0,0.05526903]
[1752805800104,1.57113919,120340.0,120330.0,0.03210904]
[1752805800502,1.57113919,120340.0,120330.0,0.00968]
[1752805800900,1.14053919,120340.0,120330.0,0.00968]
[1752805801096,0.18491875,120320.0,120310.0,0.12319445]
[1752805801297,0.1661128,120310.0,120300.0,0.16865445]
[1752805801504,0.1661266,120300.0,120290.0,0.19155445]
[1752805801710,0.85011893,120300.0,120290.0,0.16865445]
[1752805801903,1.57201318,120300.0,120290.0,0.12392]
[1752805802210,1.04196768,120300.0,120290.0,0.12392]
[1752805802405,1.63868768,120300.0,120290.0,0.14682]
[1752805802803,1.63876768,120300.0,120290.0,0.14682]
[1752805803102,1.63876768,120300.0,120290.0,0.12392]
[1752805803402,0.1661404,120290.0,120280.0,0.12392]
[1752805803607,0.1661542,120280.0,120270.0,0.14682]
[1752805803808,0.85014653,120280.0,120270.0,0.14682]
[1752805804007,0.97535135,120280.0,120270.0,0.14682]
[1752805804312,1.08276482,120280.0,120270.0,0.407148]
[1752805804608,1.09085645,120280.0,120270.0,0.407148]
[1752805805602,0.49409645,120280.0,120270.0,0.73034033]
[1752805806097,1.09081645,120280.0,120270.0,0.73034033]
[1752805806303,1.09081645,120280.0,120270.0,0.73134033]
[1752805806606,1.09081645,120280.0,120270.0,1.23134033]
[1752805807206,0.3608,120290.0,120280.0,0.4071342]
[1752805807502,1.08162325,120290.0,120280.0,0.73032653]
[1752805807909,0.48486325,120290.0,120280.0,0.73032653]
[1752805808109,1.08158325,120290.0,120280.0,0.73032653]
[1752805808810,1.08258325,120290.0,120280.0,1.23032653]
[1752805809911,1.08262325,120290.0,120280.0,1.23032653]
[1752805810311,0.48586325,120290.0,120280.0,1.23032653]
[1752805810514,1.08258325,120290.0,120280.0,1.23032653]
[1752805810808,1.24868365,120290.0,120280.0,1.23232653]
[1752805811007,1.25688562,120290.0,120280.0,1.23232653]
[1752805811309,1.25688562,120290.0,120280.0,1.23432653]
[1752805811310,1.25588562,120290.0,120280.0,1.23432653]
[1752805811512,1.25588562,120290.0,120280.0,0.9111342]
[1752805812210,1.25588562,120290.0,120280.0,1.23432653]
[1752805813308,1.25588562,120290.0,120280.0,0.9111342]
[1752805813610,1.25588562,120290.0,120280.0,1.23432653]
[1752805813809,1.25588562,120290.0,120280.0,0.9111342]
[1752805814013,1.25588562,120290.0,120280.0,1.23432653]
[1752805815014,1.08974522,120290.0,120280.0,1.23232653]
[1752805815210,1.08974522,120290.0,120280.0,1.23032653]
[1752805815513,1.25588562,120290.0,120280.0,1.23132653]
[1752805816314,1.25588562,120290.0,120280.0,1.23332653]
[1752805816713,1.25588562,120290.0,120280.0,1.23432653]
[1752805817107,1.08974522,120290.0,120280.0,1.23432653]
[1752805817302,0.49306522,120290.0,120280.0,1.23432653]
[1752805817508,1.08958522,120290.0,120280.0,1.23432653]
[1752805818009,0.59652,120290.0,120280.0,1.55751886]
[1752805819710,0.59652,120290.0,120280.0,1.97379086]
[1752805819904,0.54511459,120300.0,120290.0,0.4071204]
[1752805819905,0.97546789,120300.0,120290.0,0.4071204]
[1752805820106,0.97546789,120300.0,120290.0,0.73031273]
[1752805820812,0.95728,120300.0,120290.0,0.73031273]
[1752805821514,0.95728,120300.0,120290.0,0.73131273]
[1752805823513,0.95728,120300.0,120290.0,1.23131273]
[1752805825521,0.3608,120300.0,120290.0,1.23131273]
[1752805825814,0.95716,120300.0,120290.0,1.23131273]
[1752805826316,0.95716,120300.0,120290.0,1.27604718]
[1752805829114,1.1231666,120300.0,120290.0,1.27604718]
[1752805829317,1.44631893,120300.0,120290.0,0.78671445]
[1752805829521,0.97523512,120300.0,120290.0,0.65405352]
[1752805829715,0.97523512,120300.0,120290.0,0.501]
[1752805829716,1.57143512,120300.0,120290.0,0.501]
[1752805830113,1.98769113,120300.0,120290.0,0.501]
[1752805830310,0.1661404,120290.0,120280.0,0.02985907]
[1752805830513,0.1661542,120280.0,120270.0,0.07459352]
[1752805830714,1.44630653,120280.0,120270.0,0.07459352]
[1752805830915,1.57112569,120280.0,120270.0,0.07459352]
[1752805831122,1.57112569,120280.0,120270.0,0.02985907]
[1752805831425,1.57112569,120280.0,120260.0,0.22312352]
[1752805831426,0.166168,120270.0,120260.0,0.22312352]
[1752805831722,0.6524194,120270.0,120260.0,0.38930542]
[1752805832317,1.2485394,120270.0,120260.0,0.67838907]
[1752805832517,1.2495394,120270.0,120260.0,0.84457097]
[1752805832925,1.2495394,120270.0,120260.0,0.67838907]
[1752805833319,0.97661173,120270.0,120260.0,0.65531907]
[1752805833519,1.57281173,120270.0,120260.0,0.5]
[1752805833823,1.57277173,120270.0,120260.0,0.5]
[1752805834025,0.1661819,120260.0,120250.0,0.38613277]
[1752805834222,0.5269819,120260.0,120250.0,0.38613277]
[1752805834418,1.24811356,120260.0,120250.0,0.43042277]
[1752805836326,0.65199356,120260.0,120250.0,0.43042277]
[1752805836621,1.24819356,120260.0,120250.0,0.43042277]
[1752805837326,1.24819356,120260.0,120250.0,0.4005637]
[1752805838221,1.25639069,120260.0,120250.0,0.4005637]
[1752805838821,1.25627069,120260.0,120250.0,0.4005637]
[1752805839025,1.25627069,120260.0,120250.0,0.4507937]
[1752805840827,1.25627069,120260.0,120250.0,0.4092448]
[1752805841726,1.25627069,120260.0,120250.0,0.24305]
[1752805841927,1.25627069,120260.0,120250.0,0.4092457]
[1752805843224,1.25619069,120260.0,120250.0,0.73243803]
[1752805843416,0.66019069,120260.0,120250.0,0.73243803]
[1752805843622,1.25619069,120260.0,120250.0,0.73243803]
[1752805845425,1.09000879,120260.0,120250.0,0.73243803]
[1752805845720,1.25611069,120260.0,120250.0,0.73243803]
[1752805845921,1.25611069,120260.0,120250.0,1.23243803]
[1752805846926,1.25607069,120260.0,120250.0,0.74305]
[1752805847431,0.66019069,120260.0,120250.0,0.9092457]
[1752805847622,1.25607069,120260.0,120250.0,0.9092457]
[1752805848917,1.25607069,120260.0,120250.0,0.74305]
[1752805849322,0.66019069,120260.0,120250.0,0.74305]
[1752805849522,1.25607069,120260.0,120250.0,0.74305]
[1752805850227,1.25607069,120260.0,120250.0,0.9092457]
[1752805850523,0.66019069,120260.0,120250.0,0.9092457]
[1752805850826,1.25603069,120260.0,120250.0,0.9092457]
[1752805851626,1.25603069,120260.0,120250.0,0.74305]
[1752805852320,1.25603069,120260.0,120250.0,0.9092457]
[1752805853423,1.25603069,120260.0,120250.0,1.23243803]
[1752805854025,1.25603069,120260.0,120250.0,0.9092457]
[1752805854931,1.25603069,120260.0,120250.0,1.23243803]
[1752805855132,0.49400879,120260.0,120250.0,1.23243803]
[1752805855432,1.25583069,120260.0,120250.0,1.2622971]
[1752805856232,1.25583069,120260.0,120250.0,1.2632971]
[1752805856530,1.25583069,120260.0,120250.0,1.2652971]
[1752805857432,1.25575069,120260.0,120250.0,1.2652971]
[1752805858034,0.66019069,120260.0,120250.0,1.2652971]
[1752805858233,1.25575069,120260.0,120250.0,1.31003155]
[1752805859433,1.25571069,120260.0,120250.0,1.28017248]
[1752805860033,1.25571069,120260.0,120250.0,1.26533706]
[1752805860532,1.25571069,120260.0,120250.0,1.09914136]
[1752805860731,1.25571069,120260.0,120250.0,1.26533706]
[1752805861935,1.25571069,120260.0,120250.0,1.26333706]
[1752805862136,1.25571069,120260.0,120250.0,1.09714136]
[1752805862337,1.25559069,120260.0,120250.0,1.09714136]
[1752805862737,1.25559069,120260.0,120250.0,0.77394903]
[1752805862936,1.25559069,120260.0,120250.0,0.77294903]
[1752805864139,0.66019069,120260.0,120250.0,0.77294903]
[1752805864333,0.98338302,120260.0,120250.0,0.72271903]
[1752805864531,0.98338302,120260.0,120250.0,0.71120903]
[1752805864738,1.57866302,120260.0,120250.0,0.73365409]
[1752805865136,1.57866302,120260.0,120250.0,0.20087409]
[1752805866042,1.57866302,120260.0,120250.0,0.14790506]
[1752805866740,1.25547069,120260.0,120250.0,0.14790506]
[1752805866942,1.25547069,120260.0,120250.0,0.17200506]
[1752805866943,1.57866302,120260.0,120250.0,0.17200506]
[1752805867539,0.98338302,120260.0,120250.0,0.02244506]
[1752805867746,1.57862302,120260.0,120250.0,0.02244506]
[1752805868738,0.98338302,120260.0,120250.0,0.02244506]
[1752805868941,1.57850302,120260.0,120250.0,0.14837506]
[1752805869946,0.98338302,120260.0,120250.0,0.14837506]
[1752805870149,1.57854302,120260.0,120250.0,0.17992903]
[1752805871043,1.57854302,120260.0,120250.0,0.17246703]
[1752805871249,1.57854302,120260.0,120250.0,0.14836703]
[1752805871852,1.57850302,120260.0,120250.0,0.02243703]
[1752805872449,0.1661957,120250.0,120240.0,0.17992903]
[1752805872644,0.85018803,120250.0,120240.0,0.17992903]
[1752805872950,1.57006431,120250.0,120240.0,0.15582903]
[1752805873150,1.637341,120250.0,120240.0,0.02989903]
[1752805873447,1.7619539,120250.0,120240.0,0.02242563]
[1752805873752,1.7619539,120250.0,120240.0,0.02542563]
[1752805873941,1.78019703,120250.0,120240.0,0.02542563]
[1752805875151,1.78019703,120250.0,120240.0,0.10266563]
[1752805875556,1.18519703,120250.0,120240.0,0.10266563]
[1752805875853,1.78011703,120250.0,120240.0,0.15135563]
[1752805876247,1.18519703,120250.0,120240.0,0.15135563]
[1752805876452,1.78011703,120250.0,120240.0,0.15135563]
[1752805877047,1.78011703,120250.0,120240.0,0.17545563]
[1752805880658,1.78011703,120250.0,120240.0,0.15135563]
[1752805881558,1.18519703,120250.0,120240.0,0.02542563]
[1752805881759,1.77991703,120250.0,120240.0,0.02542563]
[1752805882050,1.18519703,120250.0,120240.0,0.003]
[1752805882248,1.77991703,120250.0,120240.0,0.003]
[1752805882449,0.1662095,120240.0,120230.0,0.02242563]
[1752805882648,2.00048183,120240.0,120230.0,0.02242563]
[1752805882852,2.12532181,120240.0,120230.0,0.16473563]
[1752805883051,2.12532181,120240.0,120230.0,0.25780563]
[1752805883052,2.39680948,120240.0,120230.0,0.25780563]
[1752805883658,2.39680948,120240.0,120230.0,0.27080563]
[1752805884153,1.80212948,120240.0,120230.0,0.43702893]
[1752805884355,2.39676948,120240.0,120230.0,0.44450233]
[1752805884561,2.39676948,120240.0,120230.0,0.46689454]
[1752805885660,2.39676948,120240.0,120230.0,0.44450233]
[1752805885955,2.03596948,120240.0,120230.0,0.44450233]
[1752805886158,2.39676948,120240.0,120230.0,0.44450233]
[1752805886460,1.63591998,120240.0,120230.0,0.76769466]
[1752805886661,2.23047998,120240.0,120230.0,0.79008765]
[1752805886955,0.44631982,120250.0,120240.0,0.4015895]
[1752805887160,0.44631982,120250.0,120240.0,0.74717422]
[1752805887361,1.04083982,120250.0,120240.0,0.74717422]
[1752805887760,1.04083982,120250.0,120240.0,1.24717422]
[1752805887961,0.44631982,120250.0,120240.0,1.27707325]
[1752805888167,0.37904313,120250.0,120240.0,1.29941531]
[1752805888358,0.97352313,120250.0,120240.0,1.26951628]
[1752805888559,1.13971883,120250.0,120240.0,1.26951628]
[1752805889362,1.13971883,120250.0,120240.0,1.22478183]
[1752805889566,1.13971883,120250.0,120240.0,1.22578183]
[1752805889770,1.13971883,120250.0,120240.0,1.28550302]
[1752805890859,0.54523883,120250.0,120240.0,1.28550302]
[1752805891060,1.13955883,120250.0,120240.0,1.28550302]
[1752805891662,1.20640201,120250.0,120240.0,1.28550302]
[1752805892770,1.04020631,120250.0,120240.0,1.28550302]
[1752805893870,0.01824313,120250.0,120240.0,1.77502335]
[1752805894466,0.01824313,120250.0,120240.0,1.45183102]
[1752805895273,0.01824313,120250.0,120240.0,1.77502335]
[1752805896270,0.59428,120260.0,120250.0,0.4015757]
[1752805896469,0.36920942,120270.0,120260.0,0.2592519]
[1752805896669,0.96328942,120270.0,120260.0,0.79933435]
[1752805896875,0.60248942,120270.0,120260.0,0.7695023]
[1752805897071,0.00840942,120270.0,120260.0,0.7993266]
[1752805897270,0.760208,120270.0,120260.0,0.47613427]
[1752805897476,0.760208,120270.0,120260.0,0.7993266]
[1752805897676,0.59404,120270.0,120260.0,0.7993266]
[1752805897877,0.59604,120270.0,120260.0,0.7993266]
[1752805898568,0.762208,120270.0,120260.0,0.7993266]
[1752805898769,0.760208,120270.0,120260.0,0.44630997]
[1752805898973,0.761208,120270.0,120260.0,0.7705023]
[1752805899173,0.761208,120270.0,120260.0,1.2705023]
[1752805899475,0.60325688,120270.0,120260.0,1.2705023]
[1752805899678,0.60225688,120270.0,120260.0,1.2715023]
[1752805899877,0.76842488,120270.0,120260.0,0.94830997]
[1752805900177,0.17438488,120270.0,120260.0,1.25656173]
[1752805900378,0.76826488,120270.0,120260.0,1.25656173]
[1752805901673,0.00821688,120270.0,120260.0,1.25656173]
[1752805901881,1.7188234,120280.0,120270.0,0.4015481]
[1752805902180,2.3126234,120280.0,120270.0,0.74708404]
[1752805902573,1.1623034,120280.0,120270.0,0.74708404]
[1752805902880,1.17039682,120280.0,120270.0,0.74708404]
[1752805903080,1.17039682,120280.0,120270.0,1.24708404]
[1752805904783,0.80959682,120280.0,120270.0,1.24708404]
[1752805905275,0.00809342,120280.0,120270.0,1.24708404]
[1752805905483,0.59368,120280.0,120270.0,1.63769154]
[1752805906070,0.2076827,120290.0,120280.0,0.2085942]
[1752805906375,0.93471616,120290.0,120280.0,0.72472653]
[1752805906585,0.93467616,120290.0,120280.0,0.72472653]
[1752805907080,0.93467616,120290.0,120280.0,1.22472653]
[1752805907880,0.93467616,120290.0,120280.0,1.22572653]
[1752805908080,0.93467616,120290.0,120280.0,0.9035342]
[1752805908279,0.93467616,120290.0,120280.0,1.22672653]
[1752805908881,0.93467616,120290.0,120280.0,1.24907014]
[1752805909081,0.93455616,120290.0,120280.0,1.24907014]
[1752805911277,0.76782964,120290.0,120280.0,1.24907014]
[1752805911482,0.76778964,120290.0,120280.0,1.24907014]
[1752805912678,0.17442964,120290.0,120280.0,1.24907014]
[1752805913183,0.17442964,120290.0,120280.0,1.27887764]
[1752805913383,0.76770964,120290.0,120280.0,1.27887764]
[1752805913585,0.17442964,120290.0,120280.0,1.25653403]
[1752805913885,0.76770964,120290.0,120280.0,1.25653403]
[1752805915381,1.12850964,120290.0,120280.0,1.25653403]
[1752805916881,0.76770964,120290.0,120280.0,1.25653403]
[1752805917089,0.76758964,120290.0,120280.0,1.25653403]
[1752805918080,0.76758964,120290.0,120280.0,1.22672653]
[1752805918380,0.00828924,120290.0,120280.0,1.22672653]
[1752805918691,0.7592204,120290.0,120280.0,1.22672653]
[1752805918877,0.1661404,120290.0,120280.0,1.22672653]
[1752805919080,0.76735155,120290.0,120280.0,1.2714746]
[1752805919281,0.7591804,120290.0,120280.0,1.2714746]
[1752805919485,0.7591804,120290.0,120280.0,1.6322746]
[1752805923785,0.67856191,120300.0,120290.0,0.4001404]
[1752805923980,1.27144191,120300.0,120290.0,0.75318215]
[1752805924184,1.27140191,120300.0,120290.0,0.75318215]
[1752805924380,0.91060191,120300.0,120290.0,0.75318215]
[1752805924977,1.27140191,120300.0,120290.0,0.75318215]
[1752805925177,0.91060191,120300.0,120290.0,0.75318215]
[1752805925380,0.86906731,120300.0,120290.0,0.75318215]
[1752805925787,1.22986731,120300.0,120290.0,0.75318215]
[1752805926088,0.86906731,120300.0,120290.0,1.25318215]
[1752805927186,1.22986731,120300.0,120290.0,1.25318215]
[1752805927988,1.22978731,120300.0,120290.0,1.25318215]
[1752805928388,1.22978731,120300.0,120290.0,0.92998982]
[1752805930181,1.22978731,120300.0,120290.0,1.25318215]
[1752805930390,1.67814104,120300.0,120290.0,0.64822942]
[1752805930585,1.08554104,120300.0,120290.0,0.52241539]
[1752805930790,1.67814104,120300.0,120290.0,0.52241539]
[1752805930990,1.67814104,120300.0,120290.0,0.02241539]
[1752805932291,1.08554104,120300.0,120290.0,0.02241539]
[1752805932591,1.67814104,120300.0,120290.0,0.02241539]
[1752805932791,0.1661405,120290.0,120280.0,0.19559481]
[1752805932991,0.85013283,120290.0,120280.0,0.19559481]
[1752805933290,0.97483596,120290.0,120280.0,0.19559481]
[1752805933491,0.65164363,120290.0,120280.0,0.28626481]
[1752805933694,0.65164363,120290.0,120280.0,0.45241911]
[1752805933889,0.65164363,120290.0,120280.0,0.43000372]
[1752805934393,1.24412363,120290.0,120280.0,0.43100372]
[1752805934888,0.65164363,120290.0,120280.0,0.43100372]
[1752805935089,1.24412363,120290.0,120280.0,0.75419605]
[1752805935587,0.65164363,120290.0,120280.0,0.75419605]
[1752805936093,0.65164363,120290.0,120280.0,0.43100372]
[1752805936393,0.65164363,120290.0,120280.0,0.43200372]
[1752805936790,0.65164363,120290.0,120280.0,0.75519605]
[1752805937294,1.24408363,120290.0,120280.0,0.75519605]
[1752805938693,0.65164363,120290.0,120280.0,0.58904175]
[1752805938895,1.24400363,120290.0,120280.0,0.58904175]
[1752805939194,1.24400363,120290.0,120280.0,0.26584942]
[1752805940891,1.24396363,120290.0,120280.0,0.43200372]
[1752805941598,1.24388363,120290.0,120280.0,0.75519605]
[1752805941793,0.65164363,120290.0,120280.0,1.25519605]
[1752805941998,1.24388363,120290.0,120280.0,1.29994412]
[1752805942197,1.24388363,120290.0,120280.0,0.97675179]
[1752805942598,1.24388363,120290.0,120280.0,1.29994412]
[1752805944795,1.24380363,120290.0,120280.0,1.13378982]
[1752805945000,1.24380363,120290.0,120280.0,0.76584942]
[1752805945201,1.24380363,120290.0,120280.0,0.93200372]
[1752805945500,0.65164363,120290.0,120280.0,0.93200372]
[1752805945702,1.24376363,120290.0,120280.0,0.93200372]
[1752805946605,1.24376363,120290.0,120280.0,0.76584942]
[1752805946808,1.24376363,120290.0,120280.0,0.93200372]
[1752805947004,1.24376363,120290.0,120280.0,0.76584942]
[1752805947204,1.24376363,120290.0,120280.0,0.93200372]
[1752805948409,1.24376363,120290.0,120280.0,0.76584942]
[1752805948905,0.65164363,120290.0,120280.0,0.76584942]
[1752805949106,1.24360363,120290.0,120280.0,0.76584942]
[1752805949301,1.24360363,120290.0,120280.0,0.70674942]
[1752805949606,1.56679596,120290.0,120280.0,0.67517942]
[1752805949901,1.56679596,120290.0,120280.0,0.17517942]
[1752805950101,1.56679596,120290.0,120280.0,0.16774636]
[1752805951007,1.56671596,120290.0,120280.0,0.16774636]
[1752805951312,1.24352363,120290.0,120280.0,0.24745636]
[1752805951712,0.65164363,120290.0,120280.0,0.24745636]
[1752805951913,1.24352363,120290.0,120280.0,0.24745636]
[1752805952212,1.24352363,120290.0,120280.0,0.25872636]
[1752805953613,0.65164363,120290.0,120280.0,0.4024642]
[1752805953809,1.24348363,120290.0,120280.0,0.74807289]
[1752805954113,0.65164363,120290.0,120280.0,0.74807289]
[1752805954313,1.24340363,120290.0,120280.0,0.74807289]
[1752805957919,1.24340363,120290.0,120280.0,0.58191869]
[1752805959214,1.24340363,120290.0,120280.0,0.74807299]
[1752805960319,1.24340363,120290.0,120280.0,0.31090749]
[1752805960521,1.24340363,120290.0,120280.0,0.63409982]
[1752805961921,1.24340363,120290.0,120280.0,0.80025412]
[1752805962422,1.24340363,120290.0,120280.0,0.63409982]
[1752805963222,1.24340363,120290.0,120280.0,0.31090749]
[1752805963423,1.24340363,120290.0,120280.0,0.47706179]
[1752805964424,1.24340363,120290.0,120280.0,0.31090749]
[1752805965926,1.24340363,120290.0,120280.0,0.47706169]
[1752805966225,1.24340363,120290.0,120280.0,0.31090749]
[1752805967122,1.24340363,120290.0,120280.0,0.30990749]
[1752805967722,1.24340363,120290.0,120280.0,0.47606169]
[1752805967915,1.24340363,120290.0,120280.0,0.44621227]
[1752805968521,1.24340363,120290.0,120280.0,0.47613209]
[1752805969327,1.24340363,120290.0,120280.0,0.47513209]
[1752805970924,1.24340363,120290.0,120280.0,0.30897789]
[1752805971325,1.24340363,120290.0,120280.0,0.27905807]
[1752805971526,1.24340363,120290.0,120280.0,0.47513183]
[1752805971729,0.65164363,120290.0,120280.0,0.47513183]
[1752805972130,1.24260363,120290.0,120280.0,0.44521227]
[1752805972630,0.65164363,120290.0,120280.0,0.7684046]
[1752805972827,1.24260363,120290.0,120280.0,0.7684046]
[1752805974327,0.3608,120290.0,120280.0,0.7684046]
[1752805974729,1.1177804,120290.0,120280.0,0.7684046]
[1752805975030,1.1177804,120290.0,120280.0,1.2684046]
[1752805975430,0.7569804,120290.0,120280.0,1.2684046]
[1752805975730,0.25764536,120300.0,120290.0,0.3959404]
[1752805975929,0.59923996,120300.0,120290.0,0.79392103]
[1752805976127,1.7597808,120310.0,120300.0,0.2577366]
[1752805976333,2.3505408,120310.0,120300.0,0.77146636]
[1752805976534,1.7597808,120310.0,120300.0,0.44827403]
[1752805976729,1.7597808,120310.0,120300.0,0.74903425]
[1752805976930,2.3505408,120310.0,120300.0,0.74903425]
[1752805977331,2.3505408,120310.0,120300.0,0.75003425]
[1752805977527,1.7597808,120310.0,120300.0,0.75003425]
[1752805977728,2.3505008,120310.0,120300.0,0.75003425]
[1752805978133,1.2007008,120310.0,120300.0,0.77245029]
[1752805978333,1.2006208,120310.0,120300.0,0.77245029]
[1752805978632,1.20894432,120310.0,120300.0,0.77245029]
[1752805978833,1.16741392,120310.0,120300.0,0.77245029]
[1752805980034,0.80661392,120310.0,120300.0,1.29490723]
[1752805980235,0.59896352,120310.0,120300.0,1.26599191]
[1752805980729,0.76507632,120310.0,120300.0,1.26599191]
[1752805981338,0.59896352,120310.0,120300.0,1.26599191]
[1752805982137,0.00832352,120310.0,120300.0,1.26599191]
[1752805982337,0.59048,120310.0,120300.0,1.26599191]
[1752805985240,0.7565928,120310.0,120300.0,1.26599191]
[1752805985841,0.59048,120310.0,120300.0,1.26599191]
[1752805986935,0.2491608,120320.0,120300.0,1.26599191]